Cogmind - Beta 15 @@@ ROGUE MODE // 2025.06.15 @ 15:27:00 Player: Duduxx Result: Self-destructed Performance ------------- Evolutions (4) 2000 Regions Visited (7) 1400 Robots Destroyed (43) 215 Value Destroyed (1380) 1380 Prototype IDs (27) 540 Alien Tech Used (0) 0 Bonus (314) 314 TOTAL SCORE: 5849 Bonus ------- Follower Combat Kills 14 Aligned with FarCom 300 Cogmind --------- Core Integrity 697/850 Matter 300/300 Energy 11/100 System Corruption 1% Temperature Cool (0) Movement Walking (130) Location -6/Factory Parts ------- > --- POWER (2) -------- (None) > --- PROPULSION (5) --- Carbon-fiber Leg Titanium Leg Improved Titanium Leg Light Armored Exoskeleton > --- UTILITY (6) ------ Improved Heat Sink Coolant Injector Large Storage Unit Advanced Visual Processing Unit Improved Light Armor Plating System Shield > --- WEAPON (2) ------- Advanced Beam Rifle Powered Hammer > --- INVENTORY (15) --- Cesium-ion Thruster Cesium-ion Thruster Improved Heat Sink Improved Heat Sink Target Analyzer Lightning Gun Improved Spread Laser Latent Energy Streamer Peak State ------------ > --- POWER ------------ Light Deuterium Engine Nuclear Core > --- PROPULSION ------- Titanium Leg Titanium Leg Improved Titanium Leg Light Armored Exoskeleton > --- UTILITY ---------- Improved Heat Sink Coolant Injector Large Storage Unit Advanced Visual Processing Unit Hardened Light Armor Plating System Shield > --- WEAPON ----------- Improved Spread Laser Plasma Cannon > --- INVENTORY -------- Heavy Ion Engine Light Deuterium Engine Light Deuterium Engine Cesium-ion Thruster Cesium-ion Thruster Improved Heat Sink Improved Heat Sink Improved Light Armor Plating Lightning Gun Arc Projector Advanced Beam Rifle Latent Energy Streamer Powered Hammer [Rating: 54] Favorites ----------- Power Improved Ion Engine Engine Improved Ion Engine Power Core Nuclear Core Propulsion Light Treads Treads Light Treads Leg Light Armored Exoskeleton Wheel Compact Wheel Flight Unit Cesium-ion Thruster Utility Large Storage Unit Device Improved Heat Sink Storage Large Storage Unit Processor Advanced Visual Processing Unit Hackware System Shield Protection Hardened Light Armor Plating Weapon Assault Rifle Energy Gun Improved Spread Laser Energy Cannon Plasma Cannon Ballistic Gun Assault Rifle Impact Weapon Powered Hammer Build | -11 -10 -10 -10 -9 -8 -7 -6 ------- Run | Yrd Mat Min Exi Min Mat Fac Fac Slots Evolved 8 | . . . . . 4 2 2 Power 1 | . . . . . 1 . . Propulsion 3 | . . . . . 1 2 . Utility 4 | . . . . . 2 . 2 Weapon . | . . . . . . . . Parts Attached 59 | 9 . 1 1 1 5 30 12 Power 12 | 1 . . . 1 1 5 4 Engine 9 | 1 . . . 1 1 2 4 Core 3 | . . . . . . 3 . Reactor . | . . . . . . . . Propulsion 20 | 4 . . . . 1 13 2 Treads 2 | 2 . . . . . . . Leg 7 | . . . . . 1 4 2 Wheel 6 | 2 . . . . . 4 . Hover . | . . . . . . . . Flight 5 | . . . . . . 5 . Utility 16 | 2 . 1 1 . 3 7 2 Device 7 | 1 . . . . 1 4 1 Storage 4 | 1 . 1 1 . . 1 . Processor 1 | . . . . . 1 . . Hackware 1 | . . . . . . 1 . Protection 3 | . . . . . 1 1 1 Artifact . | . . . . . . . . Weapon 11 | 2 . . . . . 5 4 Energy Gun 7 | . . . . . . 5 2 Energy Cannon 1 | . . . . . . . 1 Ballistic Gun 2 | 2 . . . . . . . Ballistic Cannon . | . . . . . . . . Launcher . | . . . . . . . . Special Weapon . | . . . . . . . . Impact Weapon 1 | . . . . . . . 1 Slashing Weapon . | . . . . . . . . Piercing Weapon . | . . . . . . . . Special Melee Weapon . | . . . . . . . . Unidentified Prototypes 4 | . . . . . . 2 2 Parts Lost 16 | . . . . . 1 9 6 Power 5 | . . . . . . 2 3 Propulsion 4 | . . . . . . 4 . Utility 2 | . . . . . . 1 1 Weapon 5 | . . . . . 1 2 2 Highest Loss Streak 3 | . . . . . 1 3 2 To Critical Strikes . | . . . . . . . . Average Backups 7 | 3 4 5 5 8 10 6 10 Power . | . 1 1 1 1 . . 1 Propulsion 1 | 1 2 2 2 2 3 . 2 Utility 1 | . . . . 2 2 1 3 Weapon 3 | . 1 2 2 3 5 3 4 Tool/Special . | . . . . . . . . Unused Backups 10 | . 1 . . 1 1 3 4 Power . | . . . . . . . . Propulsion . | . . . . . . . . Utility 2 | . . . . . . . 2 Weapon 8 | . 1 . . 1 1 3 2 Tool/Special . | . . . . . . . . Average Slot Usage (%) 95 | . 100 100 100 100 94 94 87 Engine 12 | . 14 14 14 14 18 7 8 Core 2 | . . . . . . 6 3 Treads 13 | . 28 28 28 28 18 . . Leg 5 | . . . . . 6 4 26 Wheel 4 | . . . . . . 13 . Flight 4 | . . . . . . 15 . Device 12 | . 14 14 14 14 14 10 12 Storage 8 | . 14 14 14 14 9 3 6 Processor 3 | . . . . . 2 7 6 Protection 4 | . . . . . 8 6 3 Energy Gun 5 | . . . . . . 14 10 Ballistic Gun 13 | . 28 28 28 28 18 . . Peak Build Rating 54 | 7 7 7 8 10 23 46 54 Average Rating 24 | 5 7 7 7 9 18 37 51 On Entrance 13 | . 7 7 7 8 10 22 46 Naked Turns . | . . . . . . . . Heaviest Build 51 | 13 13 18 28 32 44 51 48 Greatest Support 84 | 40 40 40 40 40 40 77 84 Greatest Overweight (x) 3 | . . . . . 1 3 . Average Overweight (x) . | . . . . . . . . Largest Inventory Capacity 15 | 8 8 10 15 15 15 15 15 Average Capacity 12 | 7 8 9 10 15 15 9 15 Most Carried 15 | 5 5 6 7 10 15 15 15 Average Carried 7 | 3 4 5 5 8 10 6 10 Final Capacity 15 | 8 8 10 15 15 15 15 15 Final Carried 15 | 4 5 5 7 10 15 11 8 Class Distribution -------------------- 84% | Mutant 6% | Scavenger-Mutant 5% | Skirmisher 4% | Sprinter Dominant Class ---------------- Mutant | -10/Materials Mutant | -10/Mines Mutant | -10/Exiles Mutant | -9/Mines Mutant | -8/Materials Mutant | -7/Factory Mutant | -6/Factory Resources | -11 -10 -10 -10 -9 -8 -7 -6 ----------- Run | Yrd Mat Min Exi Min Mat Fac Fac Matter Collected 1107 | 208 . 76 . 204 43 412 164 Remotely . | . . . . . . . . Salvage Created 1594 | 24 . 76 . 193 147 744 410 Parts 68 | 2 . 6 . 9 12 27 12 Haulers Intercepted 2 | . . . . . . 1 1 Recyclers Shooed 4 | . . 1 . . . 1 2 Parts Field Recycled . | . . . . . . . . Retrieved Matter . | . . . . . . . . Parts Self-Destructed . | . . . . . . . . Prevented . | . . . . . . . . Kills | -11 -10 -10 -10 -9 -8 -7 -6 ------- Run | Yrd Mat Min Exi Min Mat Fac Fac Combat Hostiles Destroyed 31 | . . 3 . 5 5 12 6 Melee 1 | . . . . . . . 1 Guns 29 | . . 3 . 5 5 12 4 Classes Destroyed 14 | 1 . 2 . 2 1 5 3 Worker 3 | . . 1 . . 1 1 . Tunneler 2 | 1 . . . . . . 1 Hauler 2 | . . . . . . 1 1 Recycler 1 | . . . . . . 1 . Operator 2 | . . . . . . 1 1 Watcher 2 | . . . . . . 2 . Swarmer 8 | . . 3 . 2 3 . . Saboteur 1 | . . . . . . . 1 Grunt 9 | . . . . 2 . 4 3 Brawler 1 | . . . . . . . 1 Sentry 6 | . . . . 1 1 4 . Hunter 2 | . . . . . 1 1 . Programmer 3 | . . . . . . 3 . Behemoth 1 | . . . . . . . 1 Best Kill Streak 6 | 1 . 3 . 2 4 5 6 Combat Bots Only 4 | . . 3 . 2 4 2 4 Max Kills in Single Turn 2 | 1 . 1 . 2 2 1 1 Gunslinging 1 | . . . . 1 1 . . Exploded . | . . . . . . . . Melee 1 | . . . . . . . 1 Uniques/NPCs Destroyed . | . . . . . . . . Combat | -11 -10 -10 -10 -9 -8 -7 -6 -------- Run | Yrd Mat Min Exi Min Mat Fac Fac Hostile Shots Fired 379 | . . 8 . 26 19 216 110 Missed 142 | . . 1 . 8 5 97 31 Hits 237 | . . 7 . 18 14 119 79 Melee 5 | . . . . . . . 5 Projectile 232 | . . 7 . 18 14 119 74 AOE 1 | . . . . . . . 1 Critical Strikes 6 | . . . . 1 1 . 4 Damage Taken 3521 | . . 57 . 209 202 1306 1747 Core 430 | . . 14 . 47 21 195 153 Absorbed by Shields . | . . . . . . . . Core Remaining (%) 85 | 100 . . . 75 96 72 . Volleys Fired 128 | 5 1 7 . 15 5 64 31 Largest 2 | 2 2 2 . 2 2 2 2 Hottest 155 | 40 40 40 . 40 40 155 155 Shots Fired 248 | 10 2 14 . 30 10 127 55 Gun 229 | 10 2 14 . 30 10 127 36 Cannon 19 | . . . . . . . 19 Launcher . | . . . . . . . . Special . | . . . . . . . . Kinetic 71 | 10 2 14 . 30 10 5 . Thermal 174 | . . . . . . 122 52 Explosive . | . . . . . . . . Electromagnetic 3 | . . . . . . . 3 Robot Hit Streak 17 | 3 4 5 . 15 3 17 12 Robot Miss Streak 6 | 1 . 3 . 3 2 6 5 Penetration Max . | . . . . . . . . Secondary Targets 5 | . . 1 . 1 2 1 . Max Gunslinging Chain 1 | . . 1 . 1 1 1 . Shots Hit Robots 188 | 6 2 7 . 23 6 95 49 Core Hits 117 | 1 1 4 . 11 7 57 36 Critical Kills 2 | 1 . . . . . . 1 Critical Parts Destroyed 1 | . . . . . . . 1 Critical Strikes 6 | 1 . . . . . 3 2 Burn 3 | . . . . . . 3 . Meltdown 1 | . . . . . . . 1 Destroy 1 | 1 . . . . . . . Smash 1 | . . . . . . . 1 Melee Attacks 8 | . . . . . . . 8 Impact 8 | . . . . . . . 8 Slashing . | . . . . . . . . Piercing . | . . . . . . . . Sneak Attacks 1 | . . . . . . . 1 Combat Hostiles . | . . . . . . . . Follow-up Attacks . | . . . . . . . . Damage Inflicted 3607 | 79 25 92 . 307 101 1828 1175 Guns 3043 | 79 25 92 . 307 85 1812 643 Cannons 371 | . . . . . . . 371 Explosions . | . . . . . . . . Melee 156 | . . . . . . . 156 Ramming 37 | . . . . . 16 16 5 Kinetic 652 | 79 25 92 . 307 85 64 . Thermal 2739 | . . . . . . 1748 991 Explosive . | . . . . . . . . Electromagnetic 23 | . . . . . . . 23 Impact 156 | . . . . . . . 156 Slashing . | . . . . . . . . Piercing . | . . . . . . . . Highest Corruption 5 | . . . . . . 5 1 Average Corruption 2 | . . . . . . 3 1 Corruption Purged . | . . . . . . . . Corruption Blocked . | . . . . . . . . Effects 24 | . . . . . . 20 4 Message Errors 4 | . . . . . . 2 2 Matter Fused 8 | . . . . . . 8 . Heat Flow Errors 2 | . . . . . . 2 . Energy Discharges 1 | . . . . . . 1 . Data Loss (minor) 2 | . . . . . . 2 . Data Loss (major) 5 | . . . . . . 4 1 Alerts 2 | . . . . . . 1 1 Overload Shots . | . . . . . . . . Overflow Damage 123 | . . . . . . . 123 Projectiles . | . . . . . . . . Explosions . | . . . . . . . . Melee 123 | . . . . . . . 123 Knockbacks 1 | . . . . . 1 . . Impact 1 | . . . . . 1 . . Kinetic . | . . . . . . . . Secondary . | . . . . . . . . Self-Inflicted Damage 8 | . . . . . . 8 . Shots . | . . . . . . . . Rammed 5 | . . . . . 4 1 . Targets Rammed 8 | . . . . . 5 1 2 Kicked 2 | . . . . . . . 2 Crushed 1 | . . . . . 1 . . Highest Temperature 465 | . . . . 20 23 465 198 Average Temperature 102 | . . . . 7 7 119 83 Received Heat Transfer 919 | . . . . 81 108 240 490 Effects 3 | . . . . . . 3 . Shutdowns 1 | . . . . . . 1 . Matter Decay 1 | . . . . . . 1 . Damage (minor) 1 | . . . . . . 1 . Siege Activations . | . . . . . . . . Martial Activations . | . . . . . . . . Shielding Activations . | . . . . . . . . Robots Disrupted . | . . . . . . . . Combat Hostiles . | . . . . . . . . Robots Corrupted . | . . . . . . . . Combat Hostiles . | . . . . . . . . Parts Fried . | . . . . . . . . Impact Corruptions 4 | . . . . . . . 4 Robots Melted 1 | . . . . . . . 1 Combat Hostiles 1 | . . . . . . . 1 Parts Melted 9 | . . . . 1 2 6 . Heat Transferred 4769 | . . . . . . 3360 1409 Parts Sabotaged 2 | . . . . . . . 2 Parts Stolen . | . . . . . . . . Parts Stripped . | . . . . . . . . Power Chain Reactions . | . . . . . . . . Alert | -11 -10 -10 -10 -9 -8 -7 -6 ------- Run | Yrd Mat Min Exi Min Mat Fac Fac Maximum Alert Level . | . . . . . . . . Low Security (%) 100 | 100 100 100 . 100 100 100 100 Level 1 . | . . . . . . . . Level 2 . | . . . . . . . . Level 3 . | . . . . . . . . Level 4 . | . . . . . . . . Level 5 . | . . . . . . . . High Security . | . . . . . . . . Max Security . | . . . . . . . . Peak Influence 117 | 5 . 70 . 117 95 61 84 Initial 29 | . . . . . 29 . 11 Average 13 | . . 9 . 17 11 13 19 Influence Increases 985 | 5 . 75 . 187 159 397 162 Destroy 0b10 Robot/C 660 | . . 60 . 140 100 240 120 Destroy 0b10 Robot/NC 60 | 5 . 5 . . 5 30 15 Destroy Leader 178 | . . 10 . 20 30 96 22 Allied During Kill 51 | . . . . 27 24 . . Destroy Structure 6 | . . . . . . 1 5 Lose Combat Pursuer 30 | . . . . . . 30 . Influence Decreases 984 | 5 . 75 . 110 236 372 186 Entered New Map 62 | . . . . . 48 . 14 Time Decay 744 | 5 . 75 . 110 120 302 132 Lost Part 110 | . . . . . . 70 40 Lost Ally 68 | . . . . . 68 . . Squads Dispatched 12 | . 1 . . . 1 6 4 Investigation . | . . . . . . . . Extermination 4 | . . . . . . 4 . Reinforcement 5 | . 1 . . . 1 1 2 Assault 2 | . . . . . . . 2 Garrison 1 | . . . . . . 1 . Intercept . | . . . . . . . . Searches Triggered . | . . . . . . . . Construction Impeded 1 | . . . . . . . 1 Haulers Reinforced . | . . . . . . . . Active Scanning Responses . | . . . . . . . . Cargo Convoy Interrupts . | . . . . . . . . Stealth | -11 -10 -10 -10 -9 -8 -7 -6 --------- Run | Yrd Mat Min Exi Min Mat Fac Fac Distress Signals 5 | . . . . 1 1 3 . Communications Jammed . | . . . . . . . . Distress Signals . | . . . . . . . . Times Spotted 64 | . 1 3 . 9 10 20 21 Peak Tracking Total 9 | . . 2 . 4 4 3 9 Tactical Retreats 2 | . . . . 1 . 1 . Traps | -11 -10 -10 -10 -9 -8 -7 -6 ------- Run | Yrd Mat Min Exi Min Mat Fac Fac Traps Triggered 6 | . . . . . . 5 1 Indirectly . | . . . . . . . . Trap Hack Attempts . | . . . . . . . . Triggered . | . . . . . . . . Disarmed . | . . . . . . . . Reprogrammed . | . . . . . . . . Reused . | . . . . . . . . Traps Extracted . | . . . . . . . . Installed . | . . . . . . . . Triggered . | . . . . . . . . Machines | -11 -10 -10 -10 -9 -8 -7 -6 ---------- Run | Yrd Mat Min Exi Min Mat Fac Fac Machines Disabled . | . . . . . . . . Max in Single Turn . | . . . . . . . . Garrison Access 1 | . . . . . . . 1 Machines Repaired . | . . . . . . . . Machines Dismantled . | . . . . . . . . Machines Sabotaged . | . . . . . . . . Overloaded Fab Kills . | . . . . . . . . Hacking | -11 -10 -10 -10 -9 -8 -7 -6 --------- Run | Yrd Mat Min Exi Min Mat Fac Fac Machines Accessed 4 | . . . 2 . . 2 . Terminals 1 | . . . . . . 1 . Fabricators . | . . . . . . . . Repair Stations . | . . . . . . . . Recycling Units 1 | . . . . . . 1 . Scanalyzers . | . . . . . . . . Garrison Access . | . . . . . . . . Total Hacks 6 | . . . 4 . . 2 . Successful 4 | . . . 4 . . . . Failed 2 | . . . . . . 2 . Catastrophic 2 | . . . . . . 2 . Database Lockouts . | . . . . . . . . Manual 2 | . . . 1 . . 1 . Terminals 1 | . . . . . . 1 . Fabricators . | . . . . . . . . Repair Stations . | . . . . . . . . Recycling Units 1 | . . . . . . 1 . Scanalyzers . | . . . . . . . . Garrison Access . | . . . . . . . . Terminal Hacks 4 | . . . 4 . . . . Record 3 | . . . 3 . . . . Proto ID Catalog 1 | . . . 1 . . . . Fabricator Hacks . | . . . . . . . . Repair Station Hacks . | . . . . . . . . Recycling Unit Hacks . | . . . . . . . . Scanalyzer . | . . . . . . . . Garrison Access Hacks . | . . . . . . . . Unauthorized Hacks . | . . . . . . . . Terminals . | . . . . . . . . Fabricators . | . . . . . . . . Repair Stations . | . . . . . . . . Recycling Units . | . . . . . . . . Scanalyzers . | . . . . . . . . Garrison Access . | . . . . . . . . Data Cores Recovered . | . . . . . . . . Used . | . . . . . . . . Hacking Detections 1 | . . . . . . 1 . Full Trace Events . | . . . . . . . . Feedback Events . | . . . . . . . . Feedback Blocked . | . . . . . . . . Robot Schematics Acquired . | . . . . . . . . Robots Built . | . . . . . . . . Authchips . | . . . . . . . . Time . | . . . . . . . . Total Robot Build Rating . | . . . . . . . . Part Schematics Acquired . | . . . . . . . . Parts Built . | . . . . . . . . Authchips . | . . . . . . . . Time . | . . . . . . . . Total Part Build Rating . | . . . . . . . . Parts Repaired . | . . . . . . . . Time . | . . . . . . . . Parts Recycled . | . . . . . . . . Recycled Matter . | . . . . . . . . Retrieved Matter . | . . . . . . . . Retrieved Components . | . . . . . . . . Parts Scanalyzed . | . . . . . . . . Part Schematics Acquired . | . . . . . . . . Parts Damaged . | . . . . . . . . Bothacking | -11 -10 -10 -10 -9 -8 -7 -6 ------------ Run | Yrd Mat Min Exi Min Mat Fac Fac Used RIF Installer . | . . . . . . . . Robots Hacked . | . . . . . . . . Non-combat . | . . . . . . . . Combat . | . . . . . . . . Robot Hacks Applied . | . . . . . . . . Relay Couplers Released 2 | . . . . . . . 2 Machine Destruction 2 | . . . . . . . 2 Fabnet Peak Effective % . | . . . . . . . . Robots Rewired . | . . . . . . . . Allies Hacked . | . . . . . . . . Hacks Repelled . | . . . . . . . . Allies | -11 -10 -10 -10 -9 -8 -7 -6 -------- Run | Yrd Mat Min Exi Min Mat Fac Fac Total Allies 5 | . . . . 5 . . . Largest Group 5 | . . . . 5 5 . . Highest-Rated Group 89 | . . . . 89 89 . . Highest-Rated Ally 31 | . . . . 31 31 . . Total Orders . | . . . . . . . . Ally Attacks 39 | . . . . 17 22 . . Total Damage 385 | . . . . 131 254 . . Kills 3 | . . . . 3 . . . Allies Corrupted . | . . . . . . . . Allies Melted . | . . . . . . . . Intel | -11 -10 -10 -10 -9 -8 -7 -6 ------- Run | Yrd Mat Min Exi Min Mat Fac Fac Active Infowar (turns) 4970 | 11 112 527 405 791 924 1572 628 Optics 2446 | . . . . . 246 1572 628 Traps 827 | . . . . . 815 12 . Seismic 2518 | 11 112 527 405 791 672 . . Robot Analysis Total . | . . . . . . . . Derelict Logs Recovered 3 | . . 1 . 2 . . . Drone Launches . | . . . . . . . . Drone Recoveries . | . . . . . . . . Exploration | -11 -10 -10 -10 -9 -8 -7 -6 ------------- Run | Yrd Mat Min Exi Min Mat Fac Fac Turns Passed 5056 | 97 112 527 405 791 924 1572 628 Spaces Moved 3266 | 44 67 316 252 463 355 1400 369 Core 3 | 3 . . . . . . . Treads 1492 | 39 67 316 252 463 355 . . Legs 526 | . . . . . . 157 369 Wheels 739 | 2 . . . . . 737 . Hover . | . . . . . . . . Flight 506 | . . . . . . 506 . Fastest Speed 23 | 50 160 160 160 160 160 23 130 Average Speed 132 | 149 160 160 160 160 232 84 131 Slowest Speed 250 | 160 160 160 160 160 240 250 132 Overloaded Moves . | . . . . . . . . Propulsion Burnouts . | . . . . . . . . Robots Hopped 2 | . . . . . . 2 . Potential Cave-ins 4 | . . . . . . . 4 Cave-ins Triggered . | . . . . . . . . Exploration Rate (%) 41 | 4 19 77 66 93 24 38 13 Regions Visited 7 Branch Regions 3 Pre-discovered Areas 3 | . . . 1 2 . . . Known Exits Taken . | . . . . . . . . Unknown Exits Taken 7 | 1 1 1 1 1 1 1 . Scrap Searched 2 | . . . . 2 . . . Spaces Dug 6 | . . . . . . . 6 Terrain Destroyed 6 | . . . . . . . 6 Melee 6 | . . . . . . . 6 Projectile . | . . . . . . . . AOE . | . . . . . . . . Terrain Rammed . | . . . . . . . . Walls Destroyed . | . . . . . . . . Machines Disabled . | . . . . . . . . Actions | -11 -10 -10 -10 -9 -8 -7 -6 --------- Run | Yrd Mat Min Exi Min Mat Fac Fac Total 3732 | 62 70 324 253 484 439 1656 444 Wait 167 | . . . . . 59 102 6 Move 3255 | 43 66 315 251 462 354 1395 369 Hop 2 | . . . . . . 2 . Pick Up 38 | 3 2 . 1 4 8 13 7 Fast Attach 35 | 8 . . . . 3 22 2 Attach 25 | 1 . . . . 2 13 9 Detach 18 | 2 . . . . 1 12 3 Swap 9 | . . 1 1 1 . 3 3 Drop 39 | . 1 1 . 2 2 29 4 Fire 128 | 5 1 7 . 15 5 64 31 Melee 8 | . . . . . . . 8 Ram 1 | . . . . . . 1 . Kick 2 | . . . . . . . 2 Crush 5 | . . . . . 5 . . Escape Stasis . | . . . . . . . . Rewire . | . . . . . . . . Trap . | . . . . . . . . Miscellaneous . | . . . . . . . . Route ------- -11/Scrapyard -10/Materials -10/Mines (discovered 3 exits: [*Mat x2] / *Exi) -10/Exiles -9/Mines -8/Materials -7/Factory -6/Factory History --------- Turn | Location | Event 4 | -11/Scrapyard | Discovered new exit (range 16) 98 | -11/Scrapyard | Entered Materials 175 | -10/Materials | Discovered new exit (range 6) 210 | -10/Materials | Entered Mines 224 | -10/Mines | Met a Derelict bent on vengeance 239 | -10/Mines | Discovered new exit (range 12) 300 | -10/Mines | Build established: Mutant 352 | -10/Mines | Learned Materials terminal intel 352 | -10/Mines | Discovered new exit (range 9) 729 | -10/Mines | Deemed a non-threat by the Exiles lab entrance 729 | -10/Mines | Discovered new exit (range 5) 737 | -10/Mines | Entered Exiles 776 | -10/Exiles | Met 8R-AWN 803 | -10/Exiles | Met EX-HEX 848 | -10/Exiles | Met EX-BIN 870 | -10/Exiles | Aligned with FarCom system 872 | -10/Exiles | Given EX-Vault access code 913 | -10/Exiles | Opened EX-Vault 923 | -10/Exiles | Found Latent Energy Streamer 958 | -10/Exiles | Warned to stay clear of 0b10 Research branches 1002 | -10/Exiles | Met EX-DEC 1047 | -10/Exiles | Learned location of Zion (-6) 1124 | -10/Exiles | Discovered new exit (range 14) 1142 | -10/Exiles | Left Exiles lab with Latent Energy Streamer 1142 | -10/Exiles | Entered Mines 1247 | -9/Mines | Joined a pair of Derelicts in attacking an 0b10 outpost 1331 | -9/Mines | Assembled infested the area 1336 | -9/Mines | Assisted by a Guerilla fighting off Assembled 1480 | -9/Mines | Learned Materials terminal intel 1488 | -9/Mines | Assisted by bots powering up and referring to "LRC-V3" 1654 | -9/Mines | Learned location of Storage (-9) 1850 | -9/Mines | Discovered new exit (range 8) 1933 | -9/Mines | Entered Materials 1933 | -8/Materials | Accompanied by 5 allies 1933 | -8/Materials | Evolved 4 slots: Power x1, Propulsion x1, Utility x2 1934 | -8/Materials | Loaded intel: 12 terminal locations 1938 | -8/Materials | Led the pair of lost Derelicts to an unsafe place 2708 | -8/Materials | Discovered new exit (range 8) 2857 | -8/Materials | Entered Factory 2857 | -7/Factory | Evolved 2 slots: Propulsion x2 3157 | -7/Factory | Lost 3 parts (2n1u) 3568 | -7/Factory | Garrison activated, responded to threat 4332 | -7/Factory | Discovered new exit (range 19) 4429 | -7/Factory | Entered another Factory area 4429 | -6/Factory | Evolved 2 slots: Utility x2 4728 | -6/Factory | Spotted B-75 Beast 4764 | -6/Factory | Destroyed B-75 Beast 5057 | -6/Factory | Self-destructed Last Messages --------------- 04902_ R-10 Processor collects Lgt. Ion Engine. 04917_ S8YSQY2|EWSOKZ1IU/LGV#/K,UMR 04953_ Lgt. Deuterium Engine destroyed. 04959_ U-05 Engineer builds a Wall. 04977_ U-05 Engineer destroyed. 04979_ Acquired 25 matter. 04981_ U-05 Engineer builds a Wall. 05005_ Critical hit (Burn: +50). 05023_ K-01 Serf cleans the Fusion Modulator. 05040_ Lgt. Deuterium Engine destroyed. 05042_ Sneak attack on T-07 Excavator. 05042_ T-07 Excavator suffers critical hit (Smash). 05042_ Destroyed Wheel. 05042_ Destroyed Unknown Device. 05042_ Destroyed Mining Laser. 05042_ Destroyed Imp. Terrain Scanner. 05042_ T-07 Excavator system corrupted by crushing effect. 05042_ T-07 Excavator destroyed. Map ----- +----------------------------------------------------+ | ????? ???????? + " | | ????? ?????? # " | | ????? ??? # " | | ????? ??????## ############+##########?" | | ????? ?????????????????# #????" | | ?????# ## "" # ####### #????? | | ?????# ## "" + += #????? | | ?????# ## "T # ####### #????? | | ?????# #?????????????????# #????? | | ?????# #?????????????????# """ """ #????? | | ????## #?????????????????# """ """ #????? | | ????# #????????????###### """ """ #????? | | ?????T #????????????# # "" "" #????? | | ?????# #????????????# "" # "" "" #????? | | ?????# #????????????# "" # #????? | | ?????# #????????????# "T + #????? | | ?????# #????????????+ "" ##+#######+###????? | | ?????# #????????????# "" ## #??????????????? | | ?????# #????????????# ## #??????????????? | | ?????# #????????????# ## #??????????????? | | ?????# #????????????# ## #??????????????? | | ?????# ##########???###+### #??????????????? | | ?????# % #?????# #?# #??????????????? | | ???###+##+######## g #????## ### #??????????????? | | ???# ## g g###### ## #??????????????? | | ???# ## l@ #??????????????? | | ???#[ ## ### ####??????????????? | | ???# ## #?#####?????????????????? | | ???# """ """ ## #???????????????????????? | | ???# """ """ ## w#???????????????????????? | | #### """ """ ## #???????????????????????? | | / ## ??????????????????????? | | # """ """ ""## ????????????????????? | | + """ """ T"## ???????????o???????? | | ^### """ """ ""## ?????????????????? | | ^#?# ##l ###########????????????????? | | ##################g #??????????????????????????? | | +??????h???g ??????????????????????????? | | #?????????## ####??????????????????????????? | | """ #??????????# ??????????????????????????????? | | """ #??????????# ??????????????????????????????? | | """ #??????????# ??????????????????????????????? | | ???!#??????????# ??????????????????????????????? | | """??????????????# ??????????????????????????????? | | ""???????????????? ??????????????????????????????? | | ""???????????????? ??????????????????????????????? | | ?????????????????????????????????????????????????? | | #????????????????????????????????????????????????? | | ?????????????????????????????????????????????????? | | ?????????????????????????????????????????????????? | +----------------------------------------------------+ Best States ------------- Heat Dissipation 62 Coolant Potential 65 Energy Generation 25 Energy Capacity 430 Matter Stores 300 Matter Capacity 300 Sight Range 20 Terrain Scan Density 10 Armor Coverage 150 Evasion (%) 73 Recoil Reduction 2 Defensive Hacking 10 Item Schematics ----------------- None Robot Schematics ------------------ None Fabricated ------------ Nothing Repaired ---------- Nothing Alien Tech Used ----------------- None Achievements -------------- None Challenges ------------ None Game ------ Seed BiocellCorruptionMegatreads Manual? 0 Play Time 00:40:59 Cumulative 110.3 hours Start 2025.06.15 @ 14:51:07 End 2025.06.15 @ 15:27:00 Sessions 1 Manual Loads 0 Difficulty Rogue Special Mode None Game No. 215 Rogue 215 Adventurer 0 Explorer 0 Win Type - Total 0 Types 0/0/0/0/0/0/0/0/0/0 Lore% 30 Gallery% 45 Achievement% 35 Wizard Run 0 Options --------- Layout 1 ASCII 0 Keyboard 1 Movement Arrows Keybinds 0 Fullscreen 2 Font 24/Smallcaps Map View 50x35 Zoom Use 0% Tactical HUD 1 Map Filters NONE Filters NONE Steam 1 RUN: c73c06ee-e470-461e-8f3f-b282aa28451d